[Event "Schack-SM 2022: Mastarklassen-Elit"]
[Site "Fyrishov, Idrottsgatan 2, Uppsala, Sweden"]
[Date "2022.07.07"]
[Round "6.3"]
[White "Furhoff, Johan"]
[Black "Von Bahr, Oskar"]
[Result "1-0"]
[TimeControl "90 minutes for 40 moves + 30 minutes for the rest of the game + 30 seconds per move from move one."]
[WhiteTitle "IM"]
[BlackTitle "IM"]
[WhiteFideId "1701797"]
[BlackFideId "1703250"]
[WhiteElo "2348"]
[BlackElo "2386"]

1. e4 {[%clk 01:30:59]} e5 {[%clk 01:30:55]} {[%emt 00:00:05]} 2. Nf3 {[%clk
01:31:20]} {[%emt 00:00:09]} Nc6 {[%clk 01:31:14]} {[%emt 00:00:11]} 3. Bb5
{[%clk 01:31:45]} {[%emt 00:00:05]} a6 {[%clk 01:31:32]} {[%emt 00:00:11]} 4.
Ba4 {[%clk 01:32:11]} {[%emt 00:00:05]} Nf6 {[%clk 01:31:58]} {[%emt 00:00:04]}
5. O-O {[%clk 01:32:37]} {[%emt 00:00:03]} Be7 {[%clk 01:32:15]} {[%emt
00:00:13]} 6. Qe2 {[%clk 01:32:47]} {[%emt 00:00:20]} b5 {[%clk 01:32:05]}
{[%emt 00:00:40]} 7. Bb3 {[%clk 01:33:12]} {[%emt 00:00:06]} O-O {[%clk
01:32:23]} {[%emt 00:00:12]} 8. d4 {[%clk 01:33:36]} {[%emt 00:00:06]} Nxd4
{[%clk 01:31:34]} {[%emt 00:01:19]} 9. Nxd4 {[%clk 01:33:59]} {[%emt 00:00:07]}
exd4 {[%clk 01:32:02]} {[%emt 00:00:02]} 10. e5 {[%clk 01:34:21]} {[%emt
00:00:08]} Ne8 {[%clk 01:32:27]} {[%emt 00:00:05]} 11. c3 {[%clk 01:34:42]}
{[%emt 00:00:09]} c5 {[%clk 01:32:12]} {[%emt 00:00:44]} 12. cxd4 {[%clk
01:31:04]} {[%emt 00:04:09]} c4 {[%clk 01:32:33]} {[%emt 00:00:09]} 13. Bc2
{[%clk 01:27:44]} {[%emt 00:03:50]} d5 {[%clk 01:32:06]} {[%emt 00:00:57]} 14.
Be3 {[%clk 01:19:00]} {[%emt 00:09:13]} f5 {[%clk 01:28:32]} {[%emt 00:04:04]}
15. f4 {[%clk 01:15:48]} {[%emt 00:03:43]} Nc7 {[%clk 01:27:39]} {[%emt
00:01:22]} 16. Nd2 {[%clk 01:14:33]} {[%emt 00:01:45]} Be6 {[%clk 01:25:26]}
{[%emt 00:02:42]} 17. h3 {[%clk 01:04:55]} {[%emt 00:10:09]} Qd7 {[%clk
01:23:35]} {[%emt 00:02:21]} 18. Kh2 {[%clk 01:04:23]} {[%emt 00:01:03]} Kh8
{[%clk 01:18:46]} {[%emt 00:05:18]} 19. Rg1 {[%clk 00:58:41]} {[%emt 00:06:13]}
Rf7 {[%clk 01:13:14]} {[%emt 00:06:02]} 20. g4 {[%clk 00:52:40]} {[%emt
00:06:30]} g5 {[%clk 01:10:53]} {[%emt 00:02:51]} 21. fxg5 {[%clk 00:42:28]}
{[%emt 00:10:43]} fxg4 {[%clk 00:56:42]} {[%emt 00:14:40]} 22. hxg4 {[%clk
00:40:39]} {[%emt 00:02:19]} Rg8 {[%clk 00:54:42]} {[%emt 00:02:30]} 23. g6
{[%clk 00:40:26]} {[%emt 00:00:43]} hxg6 {[%clk 00:52:27]} {[%emt 00:02:45]} 24.
Kg3 {[%clk 00:40:28]} {[%emt 00:00:28]} Rh7 {[%clk 00:46:36]} {[%emt 00:06:21]}
25. Rh1 {[%clk 00:39:44]} {[%emt 00:01:15]} Bd8 {[%clk 00:25:51]} {[%emt
00:21:14]} 26. Bh6 {[%clk 00:30:17]} {[%emt 00:09:57]} Ne8 {[%clk 00:21:57]}
{[%emt 00:04:24]} 27. Rh2 {[%clk 00:23:19]} {[%emt 00:07:28]} Ng7 {[%clk
00:22:05]} {[%emt 00:00:22]} 28. Rah1 {[%clk 00:19:36]} {[%emt 00:04:13]} Nh5+
{[%clk 00:21:34]} {[%emt 00:01:01]} 29. gxh5 {[%clk 00:19:10]} {[%emt
00:00:56]} gxh5+ {[%clk 00:21:44]} {[%emt 00:00:20]} 30. Kf2 {[%clk 00:18:51]}
{[%emt 00:00:49]} Qf7+ {[%clk 00:18:54]} {[%emt 00:03:20]} 31. Qf3 {[%clk
00:13:56]} {[%emt 00:05:25]} Qxf3+ {[%clk 00:18:40]} {[%emt 00:00:44]} 32. Nxf3
{[%clk 00:14:20]} {[%emt 00:00:06]} Rxh6 {[%clk 00:19:02]} {[%emt 00:00:08]} 33.
Rxh5 {[%clk 00:14:12]} {[%emt 00:00:39]} Rxh5 {[%clk 00:19:21]} {[%emt
00:00:10]} 34. Rxh5+ {[%clk 00:14:03]} {[%emt 00:00:39]} Kg7 {[%clk 00:19:45]}
{[%emt 00:00:06]} 35. Rh7+ {[%clk 00:11:07]} {[%emt 00:03:27]} Kf8 {[%clk
00:20:08]} {[%emt 00:00:07]} 36. Rb7 {[%clk 00:10:59]} {[%emt 00:00:38]} Rg7
{[%clk 00:17:27]} {[%emt 00:03:10]} 37. Rb8 {[%clk 00:11:01]} {[%emt 00:00:28]}
Ke7 {[%clk 00:17:25]} {[%emt 00:00:32]} 38. Rb7+ {[%clk 00:07:07]} {[%emt
00:04:25]} Kf8 {[%clk 00:17:49]} {[%emt 00:00:05]} 39. Rb8 {[%clk 00:07:31]}
{[%emt 00:00:07]} Ke7 {[%clk 00:18:15]} {[%emt 00:00:04]} 40. a4 {[%clk
00:06:53]} {[%emt 00:01:08]} bxa4 {[%clk 00:15:14]} {[%emt 00:03:30]} 41. Bxa4
{[%clk 00:05:51]} {[%emt 00:01:33]} Bd7 {[%clk 00:26:23]} {[%emt 00:19:21]} 42.
Rb7 {[%clk 00:31:28]} {[%emt 00:04:53]} Ke6 {[%clk 00:26:42]} {[%emt 00:00:10]}
43. Ra7 {[%clk 00:28:06]} {[%emt 00:03:52]} a5 {[%clk 00:26:29]} {[%emt
00:00:43]} 44. Ke3 {[%clk 00:27:45]} {[%emt 00:00:51]} Rh7 {[%clk 00:19:55]}
{[%emt 00:07:04]} 45. Ra6+ {[%clk 00:26:42]} {[%emt 00:01:33]} Ke7 {[%clk
00:19:48]} {[%emt 00:00:37]} 46. Bxd7 {[%clk 00:23:16]} {[%emt 00:03:57]} Kxd7
{[%clk 00:20:12]} {[%emt 00:00:05]} 47. Rd6+ {[%clk 00:23:41]} {[%emt
00:00:04]} Ke8 {[%clk 00:20:28]} {[%emt 00:00:14]} 48. Rxd5 {[%clk 00:23:59]}
{[%emt 00:00:13]} Rb7 {[%clk 00:20:50]} {[%emt 00:00:09]} 49. Rc5 {[%clk
00:23:51]} {[%emt 00:00:38]} Rb4 {[%clk 00:20:24]} {[%emt 00:00:55]} 50. Ke4
{[%clk 00:22:02]} {[%emt 00:02:19]} Bb6 {[%clk 00:18:59]} {[%emt 00:01:55]} 51.
Rc6 {[%clk 00:20:16]} {[%emt 00:02:16]} Kd7 {[%clk 00:18:39]} {[%emt 00:00:50]}
52. Rd6+ {[%clk 00:20:05]} {[%emt 00:00:41]} Kc7 {[%clk 00:14:37]} {[%emt
00:04:32]} 53. Kd5 {[%clk 00:19:27]} {[%emt 00:01:08]} Rb3 {[%clk 00:11:53]}
{[%emt 00:03:14]} 54. Rf6 {[%clk 00:17:10]} {[%emt 00:02:46]} a4 {[%clk
00:09:37]} {[%emt 00:02:48]} 55. Rf7+ {[%clk 00:15:10]} {[%emt 00:02:29]} Kd8
{[%clk 00:09:25]} {[%emt 00:00:42]} 56. e6 {[%clk 00:14:28]} {[%emt 00:01:11]}
Bc7 {[%clk 00:06:53]} {[%emt 00:03:04]} 57. Kxc4 {[%clk 00:05:42]} {[%emt
00:09:15]} Rxb2 {[%clk 00:06:53]} {[%emt 00:00:30]} 58. d5 {[%emt 00:05:24]} a3
{[%clk 00:02:31]} 59. Nd4 {[%clk 00:05:52]} {[%emt 00:00:18]} a2 {[%clk
00:01:14]} {[%emt 00:01:47]} 60. Rf8+ {[%clk 00:05:34]} {[%emt 00:00:48]} Ke7
{[%clk 00:01:38]} {[%emt 00:00:06]} 61. Ra8 {[%clk 00:05:51]} {[%emt 00:00:13]}
Kf6 {[%clk 00:01:20]} {[%emt 00:00:48]} 62. Kc3 {[%clk 00:05:55]} {[%emt
00:00:26]} Rh2 {[%clk 00:01:19]} {[%emt 00:00:29]} 63. Nc6 {[%clk 00:05:42]}
{[%emt 00:00:45]} Re2 {[%clk 00:01:13]} {[%emt 00:00:36]} 64. Rf8+ {[%clk
00:05:08]} {[%emt 00:01:04]} Kg7 {[%clk 00:01:20]} {[%emt 00:00:23]} 65. Rf1
{[%clk 00:05:07]} {[%emt 00:00:31]} Bf4 {[%clk 00:00:59]} {[%emt 00:00:51]} 66.
Kd4 {[%clk 00:04:02]} {[%emt 00:01:35]} Bg5 {[%clk 00:00:53]} {[%emt 00:00:36]}
67. Kd3 {[%clk 00:03:40]} {[%emt 00:00:52]} Rd2+ {[%clk 00:00:42]} {[%emt
00:00:41]} 68. Kc4 {[%clk 00:03:40]} {[%emt 00:00:30]} Bf6 {[%clk 00:00:43]}
{[%emt 00:00:29]} 69. e7 {[%clk 00:03:53]} {[%emt 00:00:17]} Kf7 {[%clk
00:00:37]} {[%emt 00:00:37]} 70. Rxf6+ {[%clk 00:04:08]} {[%emt 00:00:14]} Kxf6
{[%clk 00:01:03]} {[%emt 00:00:04]} 71. e8=Q {[%clk 00:04:29]} {[%emt
00:00:09]} Rd1 {[%clk 00:02:51]} {[%emt 00:01:28]} 72. Qe5+ {[%clk 00:04:28]}
{[%emt 00:00:30]} Kf7 {[%clk 00:02:40]} {[%emt 00:00:42]} 73. Qf5+ {[%clk
00:04:45]} {[%emt 00:00:13]} Ke8 {[%clk 00:02:49]} {[%emt 00:00:20]} 74. Qh5+
{[%clk 00:05:10]} {[%emt 00:00:05]} 1-0

[Event "Schack-SM 2022: Mastarklassen-Elit"]
[Site "Fyrishov, Idrottsgatan 2, Uppsala, Sweden"]
[Date "2022.07.06"]
[Round "5.1"]
[White "Wiedenkeller, Michael"]
[Black "Johansson, Jan"]
[Result "0-1"]
[TimeControl "90 minutes for 40 moves + 30 minutes for the rest of the game + 30 seconds per move from move one."]
[WhiteTitle "IM"]
[BlackTitle "IM"]
[WhiteFideId "1700146"]
[BlackFideId "1700103"]
[WhiteElo "2437"]
[BlackElo "2306"]

1. d4 {[%clk 01:30:33]} {[%emt 00:00:26]} Nf6 {[%clk 01:30:36]} {[%emt
00:00:24]} 2. Bg5 {[%clk 01:29:45]} {[%emt 00:01:18]} d5 {[%clk 01:30:10]}
{[%emt 00:00:57]} 3. Bxf6 {[%clk 01:29:37]} {[%emt 00:00:37]} exf6 {[%clk
01:30:34]} {[%emt 00:00:06]} 4. e3 {[%clk 01:26:01]} {[%emt 00:04:06]} Bf5
{[%clk 01:26:34]} {[%emt 00:04:30]} 5. Nd2 {[%clk 01:23:06]} {[%emt 00:03:26]}
Bd6 {[%clk 01:21:41]} {[%emt 00:05:22]} 6. Ne2 {[%clk 01:12:36]} {[%emt
00:11:01]} O-O {[%clk 01:08:31]} {[%emt 00:13:39]} 7. Ng3 {[%clk 01:05:58]}
{[%emt 00:07:09]} Bg6 {[%clk 01:06:19]} {[%emt 00:02:42]} 8. c4 {[%clk
00:53:10]} {[%emt 00:13:18]} c5 {[%clk 01:01:58]} {[%emt 00:04:51]} 9. Be2
{[%clk 00:34:02]} {[%emt 00:19:38]} cxd4 {[%clk 01:00:19]} {[%emt 00:02:09]} 10.
exd4 {[%clk 00:34:10]} {[%emt 00:00:21]} Nc6 {[%clk 01:00:24]} {[%emt
00:00:26]} 11. Nf3 {[%clk 00:18:20]} {[%emt 00:16:19]} Qa5+ {[%clk 00:58:01]}
{[%emt 00:02:54]} 12. Kf1 {[%clk 00:18:38]} {[%emt 00:00:11]} dxc4 {[%clk
00:58:19]} {[%emt 00:00:13]} 13. Bxc4 {[%clk 00:18:40]} {[%emt 00:00:28]} Rad8
{[%clk 00:54:48]} {[%emt 00:04:01]} 14. Kg1 {[%clk 00:16:53]} {[%emt 00:02:17]}
Bc5 {[%clk 00:50:11]} {[%emt 00:05:07]} 15. h4 {[%clk 00:12:00]} {[%emt
00:05:22]} Bxd4 {[%clk 00:44:28]} {[%emt 00:06:14]} 16. Nxd4 {[%clk 00:07:09]}
{[%emt 00:05:21]} Rxd4 {[%clk 00:43:27]} {[%emt 00:01:30]} 17. Qb3 {[%clk
00:07:27]} {[%emt 00:00:12]} h5 {[%clk 00:41:58]} {[%emt 00:01:59]} 18. Ne2
{[%clk 00:06:08]} {[%emt 00:01:49]} Rd2 {[%clk 00:40:34]} {[%emt 00:01:55]} 19.
Rh3 {[%clk 00:03:34]} {[%emt 00:03:03]} Ne5 {[%clk 00:38:20]} {[%emt 00:02:44]}
20. Rg3 {[%clk 00:02:43]} {[%emt 00:01:22]} Bc2 {[%clk 00:37:13]} 0-1

[Event "Schack-SM 2022: Mastarklassen-Elit"]
[Site "Fyrishov, Idrottsgatan 2, Uppsala, Sweden"]
[Date "2022.07.06"]
[Round "5.2"]
[White "Andersson, Tommy"]
[Black "Furhoff, Johan"]
[Result "1/2-1/2"]
[TimeControl "90 minutes for 40 moves + 30 minutes for the rest of the game + 30 seconds per move from move one."]
[WhiteTitle "IM"]
[BlackTitle "IM"]
[WhiteFideId "1703803"]
[BlackFideId "1701797"]
[WhiteElo "2384"]
[BlackElo "2348"]

1. Nf3 {[%clk 01:30:56]} {[%emt 00:00:03]} Nc6 {[%clk 01:30:40]} {[%emt
00:00:21]} 2. d4 {[%clk 01:31:16]} {[%emt 00:00:10]} d5 {[%clk 01:31:06]}
{[%emt 00:00:04]} 3. g3 {[%clk 01:31:40]} {[%emt 00:00:06]} Bg4 {[%clk
01:31:20]} {[%emt 00:00:15]} 4. Bg2 {[%clk 01:32:02]} {[%emt 00:00:08]} Qd7
{[%clk 01:31:20]} {[%emt 00:00:30]} 5. O-O {[%clk 01:32:05]} {[%emt 00:00:27]}
Bh3 {[%clk 01:29:38]} {[%emt 00:02:12]} 6. c3 {[%clk 01:31:48]} {[%emt
00:00:47]} Bxg2 {[%clk 01:26:37]} {[%emt 00:03:31]} 7. Kxg2 {[%clk 01:32:12]}
{[%emt 00:00:06]} e6 {[%clk 01:26:35]} {[%emt 00:00:33]} 8. b4 {[%clk
01:29:44]} {[%emt 00:02:58]} Bd6 {[%clk 01:24:55]} {[%emt 00:02:09]} 9. Nbd2
{[%clk 01:28:59]} {[%emt 00:01:16]} Nf6 {[%clk 01:16:11]} {[%emt 00:09:14]} 10.
a3 {[%clk 01:22:46]} {[%emt 00:06:43]} Ne7 {[%clk 01:09:28]} {[%emt 00:07:13]}
11. c4 {[%clk 01:19:22]} {[%emt 00:03:54]} c6 {[%clk 01:06:43]} {[%emt
00:03:15]} 12. c5 {[%clk 01:17:13]} {[%emt 00:02:39]} Bc7 {[%clk 01:03:32]}
{[%emt 00:03:41]} 13. Ne5 {[%clk 01:11:49]} {[%emt 00:05:53]} Bxe5 {[%clk
00:56:03]} {[%emt 00:07:59]} 14. dxe5 {[%clk 01:11:22]} {[%emt 00:00:56]} Ng4
{[%clk 00:55:09]} {[%emt 00:01:25]} 15. Nf3 {[%clk 01:08:39]} {[%emt 00:03:13]}
f6 {[%clk 00:52:52]} {[%emt 00:02:47]} 16. exf6 {[%clk 01:04:34]} {[%emt
00:04:35]} gxf6 {[%clk 00:48:18]} {[%emt 00:05:04]} 17. Qd2 {[%clk 00:37:34]}
{[%emt 00:27:30]} h5 {[%clk 00:43:55]} {[%emt 00:04:53]} 1/2-1/2